bitfinex-derivatives/quotes_BNBF0:USTF0_20241231
["timestamp","ask_amount","ask_price","bid_price","bid_amount"]
[1735677839403,1.32101758,703.23,702.12,1.06176349]
[1735677839701,0.26178872,703.22,702.12,1.06176349]
[1735677840596,1.05922886,703.2,702.09,1.06176349]
[1735677841700,1.05922886,703.2,702.07,0.28487187]
[1735677841701,1.05922886,703.27,702.07,0.28487187]
[1735677841897,0.26180431,703.26,702.07,0.28487187]
[1735677842098,1.05922886,703.27,702.07,0.28487187]
[1735677842702,1.05922886,703.26,702.07,0.28487187]
[1735677843804,1.05922886,703.28,702.07,0.28487187]
[1735677844903,1.48588304,703.35,702.07,0.28487187]
[1735677844904,1.05922886,703.3,702.07,0.28487187]
[1735677846005,1.32102256,703.29,702.07,0.28487187]
[1735677846307,1.05922886,703.29,702.07,0.28487187]
[1735677847005,1.48588304,703.35,702.07,0.28487187]
[1735677847006,1.05922886,703.23,702.07,0.28487187]
[1735677848106,1.05922886,703.21,702.07,0.28487187]
[1735677848906,1.48588304,703.35,702.07,0.28487187]
[1735677848907,1.05922886,703.24,702.07,0.28487187]
[1735677851001,0.26179825,703.23,702.07,0.28487187]
[1735677851202,1.05922886,703.23,702.07,0.28487187]
[1735677852208,0.2618092,703.22,702.07,0.28487187]
[1735677852408,1.05922886,703.19,702.11,1.06176349]
[1735677852606,0.26184588,703.18,702.11,1.06176349]
[1735677852799,1.05922886,703.19,702.11,1.06176349]
[1735677853307,1.05922886,703.12,702.07,0.28487187]
[1735677854306,1.48592005,703.21,702.07,0.28487187]
[1735677854307,1.05922886,703.14,702.07,0.28487187]
[1735677856404,1.05922886,703.17,702.07,0.28487187]
[1735677857409,0.26186152,703.16,702.07,0.28487187]
[1735677858308,1.05922886,703.15,702.07,0.28487187]
[1735677858508,0.26186152,703.14,702.07,0.28487187]
[1735677858911,0.26188338,703.13,702.07,0.28487187]
[1735677859210,1.48592005,703.21,702.07,0.28487187]
[1735677859211,0.26188338,703.12,702.07,0.28487187]
[1735677859411,0.26187889,703.11,702.07,0.28487187]
[1735677859611,1.05922886,703.16,702.07,0.28487187]
[1735677859812,0.26188176,703.15,702.07,0.28487187]
[1735677860507,0.26188176,703.14,702.07,0.28487187]
[1735677860702,0.26188176,703.13,702.07,0.28487187]
[1735677860906,0.26188176,703.12,702.07,0.28487187]
[1735677861104,0.26188176,703.11,702.07,0.28487187]
[1735677861307,0.26188176,703.1,702.07,0.28487187]
[1735677861509,1.05922886,703.19,702.07,0.28487187]
[1735677861710,0.26188271,703.18,702.07,0.28487187]
[1735677862208,1.05922886,703.15,702.07,0.28487187]
[1735677862510,0.26188271,703.14,702.07,0.28487187]
[1735677863106,1.48623207,703.13,702.07,0.28487187]
[1735677863314,0.26188271,703.12,702.07,0.28487187]
[1735677864217,0.26188481,703.11,702.07,0.28487187]
[1735677864417,1.48623207,703.13,702.07,0.28487187]
[1735677864418,0.26188481,703.1,702.07,0.28487187]
[1735677864610,0.26188481,703.09,702.07,0.28487187]
[1735677864811,0.26188481,703.08,702.07,0.28487187]
[1735677865017,0.26188481,703.07,702.07,0.28487187]
[1735677865216,0.26188481,703.06,702.07,0.28487187]
[1735677865414,0.26188481,703.05,702.07,0.28487187]
[1735677865611,0.26188481,703.04,702.07,0.28487187]
[1735677865915,1.48623207,703.13,702.07,0.28487187]
[1735677865916,0.26188481,703.03,702.07,0.28487187]
[1735677866114,0.26188481,703.02,702.07,0.28487187]
[1735677866310,0.26188481,703.01,702.07,0.28487187]
[1735677866515,0.26188481,703.0,702.07,0.28487187]
[1735677866711,0.26188481,702.99,702.07,0.28487187]
[1735677866916,1.48623207,703.13,702.07,0.28487187]
[1735677867319,0.26188515,703.12,702.07,0.28487187]
[1735677869720,0.26189031,703.11,702.07,0.28487187]
[1735677870020,0.26189031,703.1,702.07,0.28487187]
[1735677870216,0.26189031,703.09,702.07,0.28487187]
[1735677870421,0.26189031,703.08,702.07,0.28487187]
[1735677870619,0.26189031,703.07,702.07,0.28487187]
[1735677870814,0.26189031,703.06,702.07,0.28487187]
[1735677871015,0.26189031,703.05,702.07,0.28487187]
[1735677871215,0.26189031,703.04,702.07,0.28487187]
[1735677871415,0.26189031,703.03,702.07,0.28487187]
[1735677871616,0.26189031,703.02,702.07,0.28487187]
[1735677871820,0.26189031,703.01,702.07,0.28487187]
[1735677872021,0.26189031,703.0,702.07,0.28487187]
[1735677872220,2.54546093,703.13,702.07,0.28487187]
[1735677872517,0.2618893,703.12,702.07,0.28487187]
[1735677873123,0.26189456,703.11,702.07,0.28487187]
[1735677873319,0.26189456,703.1,702.07,0.28487187]
[1735677873526,0.26189456,703.09,702.07,0.28487187]
[1735677873726,0.26189456,703.08,702.07,0.28487187]
[1735677874019,2.54546093,703.13,702.07,0.28487187]
[1735677874020,0.26189456,703.07,702.07,0.28487187]
[1735677874225,0.26189456,703.06,702.07,0.28487187]
[1735677874427,0.26189456,703.05,702.07,0.28487187]
[1735677874625,0.26189456,703.04,702.07,0.28487187]
[1735677874825,0.26189456,703.03,702.07,0.28487187]
[1735677875028,0.2618978,703.02,702.07,0.28487187]
[1735677875327,0.2618978,703.01,702.07,0.28487187]
[1735677875628,0.2618978,703.0,702.07,0.28487187]
[1735677875825,0.2618978,702.99,702.07,0.28487187]
[1735677876020,0.2618978,702.98,702.07,0.28487187]
[1735677876226,0.2618978,702.97,702.07,0.28487187]
[1735677876423,0.2618978,702.96,702.07,0.28487187]
[1735677876620,0.2618978,702.95,702.07,0.28487187]
[1735677876827,0.2618978,702.94,702.07,0.28487187]
[1735677877025,0.2618978,702.93,702.07,0.28487187]
[1735677877222,0.2618978,702.92,702.07,0.28487187]
[1735677877429,1.48625852,703.04,702.07,0.28487187]
[1735677877627,0.26190333,703.03,702.07,0.28487187]
[1735677880324,0.26189331,703.02,702.07,0.28487187]
[1735677880528,0.26189331,703.01,702.07,0.28487187]
[1735677880827,0.26189331,703.0,702.07,0.28487187]
[1735677881027,1.48625852,703.04,702.07,0.28487187]
[1735677881228,0.2618972,703.03,702.07,0.28487187]
[1735677883024,1.48625852,703.04,702.07,0.28487187]
[1735677883526,0.26195038,703.03,702.07,0.28487187]
[1735677883925,0.26195038,703.03,701.75,1.06176349]
[1735677885132,0.26195038,703.03,701.4,1.06176349]
[1735677885533,1.48625852,703.04,701.42,0.28513586]
[1735677885830,0.26194386,703.03,701.42,0.28513586]
[1735677886428,0.26194386,703.03,701.42,1.34689935]
[1735677887433,0.26194386,703.03,701.44,1.06176349]
[1735677887733,0.26194386,703.03,701.46,0.2851196]
[1735677888329,0.26195569,703.02,701.46,0.2851196]
[1735677888533,1.05922886,702.98,701.46,0.2851196]
[1735677888727,0.26195569,702.97,701.46,0.2851196]
[1735677888932,1.05922886,702.98,701.46,0.2851196]
[1735677889131,0.26196103,702.97,701.46,0.2851196]
[1735677889329,1.7486005,702.97,701.46,0.2851196]
[1735677889527,1.05922886,702.94,701.48,1.06176349]
[1735677889729,0.26196103,702.93,701.5,0.28510334]
[1735677890432,0.26196103,702.93,701.5,1.34686683]
[1735677890636,0.26196103,702.92,701.5,1.34686683]
[1735677890836,0.26196103,702.91,701.5,1.34686683]
[1735677891036,0.26196513,702.9,701.5,1.34686683]
[1735677891337,0.26196513,702.89,701.5,1.34686683]
[1735677891538,0.26196513,702.88,701.5,0.28510334]
[1735677891735,1.05922886,702.94,701.5,0.28510334]
[1735677891931,0.26196341,702.93,701.5,0.28510334]
[1735677892531,0.26196341,702.92,701.5,0.28510334]
[1735677892730,0.26196341,702.91,701.5,0.28510334]
[1735677893034,0.26196341,702.9,701.5,0.28510334]
[1735677893231,0.26196341,702.89,701.5,0.28510334]
[1735677893432,0.26196341,702.88,701.5,0.28510334]
[1735677893634,1.05922886,702.94,701.5,0.28510334]
[1735677893938,0.26196341,702.93,701.5,0.28510334]
[1735677894935,1.05922886,702.86,701.54,1.06176349]
[1735677895139,0.26196341,702.85,701.55,0.28508303]
[1735677896439,0.26197826,702.84,701.55,0.28508303]
[1735677896639,0.26197826,702.83,701.55,0.28508303]
[1735677896941,0.26197826,702.82,701.55,0.28508303]
[1735677897141,0.26197843,702.85,701.55,0.28508303]
[1735677897442,0.26197843,702.84,701.55,0.28508303]
[1735677897740,1.05922886,702.87,701.55,0.28508303]
[1735677897940,0.26197011,702.86,701.55,0.28508303]
[1735677898943,1.05922886,702.88,701.55,0.28508303]
[1735677898944,0.26197011,702.85,701.55,0.28508303]
[1735677899145,0.26196814,702.84,701.55,0.28508303]
[1735677899443,0.26196814,702.83,701.55,0.28508303]
[1735677899639,0.26196814,702.82,701.55,0.28508303]
[1735677899838,0.26196814,702.81,701.55,0.28508303]
[1735677900044,0.26196814,702.8,701.55,0.28508303]
[1735677900244,0.26196814,702.79,701.55,0.28508303]
[1735677900544,0.26196814,702.78,701.55,0.28508303]
[1735677900747,0.26196814,702.77,701.55,0.28508303]
[1735677900943,1.48667122,702.86,701.55,0.28508303]
[1735677900944,0.26196814,702.76,701.55,0.28508303]
[1735677901137,0.26196814,702.75,701.55,0.28508303]
[1735677901444,0.26196814,702.74,701.55,0.28508303]
[1735677901645,0.26196814,702.73,701.55,0.28508303]
[1735677901845,0.26196814,702.72,701.55,0.28508303]
[1735677902044,0.26196814,702.71,701.55,0.28508303]
[1735677902339,1.05922886,702.79,701.55,0.28508303]
[1735677902340,0.26196814,702.7,701.55,0.28508303]
[1735677902546,0.26196814,702.69,701.55,0.28508303]
[1735677902743,0.26196814,702.68,701.55,0.28508303]
[1735677902944,0.26196814,702.67,701.55,0.28508303]
[1735677903142,0.26196814,702.66,701.55,0.28508303]
[1735677903339,1.05922886,702.81,701.55,0.28508303]
[1735677903542,0.26201118,702.8,701.55,0.28508303]
[1735677904038,0.26201118,702.79,701.55,0.28508303]
[1735677904239,0.26200908,702.78,701.55,0.28508303]
[1735677904445,0.26200908,702.77,701.55,0.28508303]
[1735677904639,0.26200908,702.76,701.55,0.28508303]
[1735677904845,0.26200908,702.75,701.55,0.28508303]
[1735677905045,0.26200908,702.74,701.55,0.28508303]
[1735677905245,0.26200908,702.73,701.55,0.28508303]
[1735677905547,0.26200908,702.72,701.55,0.28508303]
[1735677905746,0.26200908,702.71,701.55,0.28508303]
[1735677906046,0.26200908,702.7,701.55,0.28508303]
[1735677906241,0.26200088,702.69,701.55,0.28508303]
[1735677906442,0.26200088,702.68,701.55,0.28508303]
[1735677906644,1.05922886,702.84,701.55,0.28508303]
[1735677906845,1.48667122,702.86,701.55,0.28508303]
[1735677906846,0.261999,702.83,701.55,0.28508303]
[1735677907046,0.261999,702.82,701.55,0.28508303]
[1735677907241,0.261999,702.81,701.55,0.28508303]
[1735677907445,0.261999,702.8,701.55,0.28508303]
[1735677907648,0.261999,702.79,701.55,0.28508303]
[1735677907948,0.261999,702.78,701.55,0.28508303]
[1735677908146,0.261999,702.77,701.55,0.28508303]
[1735677908448,0.261999,702.76,701.55,0.28508303]
[1735677908647,0.261999,702.75,701.55,0.28508303]
[1735677908948,0.26199844,702.74,701.55,0.28508303]
[1735677909147,0.26199844,702.73,701.55,0.28508303]
[1735677909342,0.26199844,702.72,701.55,0.28508303]
[1735677909546,0.26199844,702.71,701.55,0.28508303]
[1735677909743,0.26199844,702.7,701.55,0.28508303]
[1735677909944,0.26199844,702.69,701.55,0.28508303]
[1735677910148,0.26199844,702.68,701.55,0.28508303]
[1735677910449,0.26199844,702.67,701.55,0.28508303]
[1735677910646,0.26199844,702.66,701.55,0.28508303]
[1735677910950,1.05922886,702.84,701.55,0.28508303]
[1735677911151,0.26198609,702.83,701.55,0.28508303]
[1735677912251,0.26197841,702.82,701.55,0.28508303]
[1735677912449,0.26197841,702.81,701.55,0.28508303]
[1735677912643,0.26197841,702.8,701.55,0.28508303]
[1735677912849,0.26197841,702.79,701.55,0.28508303]
[1735677913050,1.48667122,702.86,701.55,0.28508303]
[1735677914148,1.05922886,702.88,701.55,0.28508303]
[1735677915146,1.48663947,702.96,701.55,0.28508303]
[1735677916654,1.48663947,702.96,701.62,1.06176349]
[1735677916954,0.52383426,702.95,701.63,0.28505052]
[1735677917253,0.26191517,702.94,701.63,0.28505052]
[1735677917448,0.26191909,702.95,701.63,0.28505052]
[1735677917647,0.26191909,702.95,701.64,1.06176349]
[1735677918950,0.26191909,702.95,701.63,0.28505052]
[1735677918951,0.26191909,702.95,701.72,1.06176349]
[1735677919549,0.26191909,702.95,701.73,0.2850099]
[1735677919752,0.26191909,702.95,701.77,1.06176349]
[1735677919948,0.26191909,702.95,701.78,0.28498959]
[1735677922153,0.26190948,702.94,701.78,0.28498959]
[1735677922958,0.26190948,702.93,701.78,0.28498959]
[1735677923153,0.26190948,702.92,701.78,0.28498959]
[1735677923359,0.26190948,702.91,701.78,0.28498959]
[1735677923557,0.26190948,702.9,701.78,0.28498959]
[1735677923759,1.05922886,703.1,701.78,0.28498959]
[1735677923962,1.05922886,703.05,701.78,0.28498959]
[1735677924159,0.26191843,703.04,701.78,0.28498959]
[1735677924855,1.32114729,703.04,701.78,0.28498959]
[1735677925059,0.26191843,703.03,701.78,0.28498959]
[1735677926461,0.26191843,703.02,701.78,0.28498959]
[1735677926661,0.26191843,703.01,701.78,0.28498959]
[1735677926955,0.26191843,703.0,701.78,0.28498959]
[1735677927160,0.26192357,702.99,701.78,0.28498959]
[1735677927355,1.48633257,703.13,701.78,0.28498959]
[1735677927356,0.26192357,702.98,701.78,0.28498959]
[1735677927563,0.26192357,702.97,701.78,0.28498959]
[1735677927757,2.54556143,703.13,701.78,0.28498959]
[1735677927962,0.26191197,703.12,701.78,0.28498959]
[1735677929866,0.26191296,703.11,701.78,0.28498959]
[1735677930065,0.26191296,703.1,701.78,0.28498959]
[1735677930265,0.26191296,703.09,701.78,0.28498959]
[1735677930464,1.48633257,703.13,701.78,0.28498959]
[1735677930465,0.26191296,703.08,701.78,0.28498959]
[1735677930762,0.26191296,703.07,701.78,0.28498959]
[1735677930960,0.26191296,703.06,701.78,0.28498959]
[1735677931160,0.26191296,703.05,701.78,0.28498959]
[1735677931360,0.26191296,703.04,701.78,0.28498959]
[1735677931664,0.26191296,703.03,701.78,0.28498959]
[1735677931866,1.05922886,702.96,701.78,0.28498959]
[1735677932067,0.26191296,702.95,701.78,0.28498959]
[1735677932261,1.05922886,702.96,701.78,0.28498959]
[1735677932460,0.26199298,702.95,701.78,0.28498959]
[1735677933069,1.32122184,702.95,701.78,0.28498959]
[1735677933264,0.26199298,702.94,701.78,0.28498959]
[1735677934066,1.05922886,702.87,701.78,0.28498959]
[1735677934265,0.26199298,702.86,701.78,0.28498959]
[1735677934969,0.26200648,702.85,701.78,0.28498959]
[1735677935167,0.26200648,702.84,701.78,0.28498959]
[1735677935366,1.05922886,702.88,701.78,0.28498959]
[1735677935367,0.26200648,702.83,701.78,0.28498959]
[1735677935567,0.26200648,702.82,701.78,0.28498959]
[1735677935769,0.26200644,702.81,701.78,0.28498959]
[1735677935969,0.26200644,702.8,701.78,0.28498959]
[1735677936168,0.26200644,702.79,701.78,0.28498959]
[1735677936369,0.26200644,702.78,701.78,0.28498959]
[1735677936569,0.26200644,702.77,701.78,0.28498959]
[1735677936869,0.26200644,702.76,701.78,0.28498959]
[1735677937064,0.26200644,702.75,701.78,0.28498959]
[1735677937264,0.26200644,702.74,701.78,0.28498959]
[1735677937465,0.26200644,702.73,701.78,0.28498959]
[1735677937671,1.05922886,702.88,701.78,0.28498959]
[1735677937869,0.2620111,702.87,701.78,0.28498959]
[1735677939766,1.32123996,702.87,701.78,0.28498959]
[1735677939966,0.2620111,702.86,701.78,0.28498959]
[1735677940367,0.26204359,702.85,701.78,0.28498959]
[1735677940666,0.26204359,702.84,701.78,0.28498959]
[1735677940877,0.26204359,702.83,701.78,0.28498959]
[1735677941174,0.26204359,702.82,701.14,1.06176349]
[1735677941379,0.26204359,702.81,701.14,1.06176349]
[1735677941575,0.26208677,702.8,701.14,1.06176349]
[1735677941778,1.05922886,702.85,701.14,1.06176349]
[1735677941779,0.26208677,702.79,701.14,1.06176349]
[1735677942078,1.32131563,702.78,701.01,1.06176349]
[1735677942274,0.26208677,702.77,701.01,1.06176349]
[1735677942678,0.26208677,702.77,701.03,0.28529449]
[1735677943279,0.26208677,702.76,701.03,0.28529449]
[1735677943477,0.26208677,702.78,701.03,0.28529449]
[1735677943778,0.26208677,702.77,701.03,0.28529449]
[1735677944079,0.26208677,702.76,701.03,0.28529449]
[1735677944280,1.48723245,702.8,701.03,0.28529449]
[1735677944281,0.26208677,702.75,701.03,0.28529449]
[1735677944473,0.26208677,702.74,701.03,0.28529449]
[1735677944676,0.26208677,702.73,701.03,0.28529449]
[1735677944980,0.26208677,702.72,701.03,0.28529449]
[1735677945281,0.26208677,702.71,701.03,0.28529449]
[1735677945479,0.26208677,702.7,701.03,0.28529449]
[1735677945680,0.26208677,702.69,701.03,0.28529449]
[1735677945874,0.26208677,702.68,701.03,0.28529449]
[1735677946077,0.26208677,702.67,701.03,0.28529449]
[1735677946275,0.26208677,702.66,701.03,0.28529449]
[1735677946480,0.26208677,702.65,701.03,0.28529449]
[1735677946680,0.26208677,702.64,701.03,0.28529449]
[1735677946980,0.26208677,702.63,701.03,0.28529449]
[1735677947281,0.26208677,702.62,701.03,0.28529449]
[1735677947483,0.26208677,702.61,701.03,0.28529449]
[1735677947776,0.26208677,702.6,701.03,0.28529449]
[1735677947982,0.26208677,702.59,701.03,0.28529449]
[1735677948276,1.48723245,702.8,701.03,0.28529449]
[1735677948484,0.26214661,702.79,701.03,0.28529449]
[1735677950076,0.28458812,702.77,701.03,0.28529449]
[1735677950282,0.26214661,702.76,701.03,0.28529449]
[1735677951383,0.28460027,702.74,701.03,0.28529449]
[1735677951583,0.26214661,702.73,701.03,0.28529449]
[1735677952278,1.7725509,702.72,701.03,0.28529449]
[1735677952482,0.26214661,702.71,701.03,0.28529449]
[1735677953178,0.28461647,702.7,701.03,0.28529449]
[1735677953378,0.26216748,702.69,701.03,0.28529449]
[1735677954579,0.28462458,702.68,701.03,0.28529449]
[1735677954780,0.26216748,702.67,701.03,0.28529449]
[1735677954980,0.28463268,702.66,701.03,0.28529449]
[1735677955185,0.26216748,702.65,701.03,0.28529449]
[1735677955382,0.28464078,702.64,701.03,0.28529449]
[1735677955586,0.26216748,702.63,701.03,0.28529449]
[1735677955985,0.26214489,702.62,701.03,0.28529449]
[1735677956182,0.26214489,702.61,701.03,0.28529449]
[1735677956388,0.26214489,702.6,701.03,0.28529449]
[1735677956689,0.26214489,702.59,701.03,0.28529449]
[1735677956885,0.26214489,702.58,701.03,0.28529449]
[1735677957086,0.26214489,702.57,701.03,0.28529449]
[1735677957383,0.26214489,702.56,701.03,0.28529449]
[1735677957588,0.26214489,702.55,701.03,0.28529449]
[1735677957891,0.28464078,702.64,701.03,0.28529449]
[1735677958093,0.26215944,702.63,701.03,0.28529449]
[1735677958685,0.26213554,702.62,701.03,0.28529449]
[1735677958991,0.26213554,702.61,701.03,0.28529449]
[1735677959188,0.26213554,702.6,701.03,0.28529449]
[1735677959384,0.26213554,702.59,701.03,0.28529449]
[1735677959589,0.26213554,702.58,701.03,0.28529449]
[1735677959786,0.26213554,702.57,701.03,0.28529449]
[1735677960089,0.28464078,702.64,701.03,0.28529449]
[1735677960090,0.26213554,702.56,701.03,0.28529449]
[1735677960289,0.26213554,702.55,701.03,0.28529449]
[1735677960492,0.26213554,702.54,701.03,0.28529449]
[1735677960687,0.26213554,702.53,701.03,0.28529449]
[1735677960885,0.26210691,702.52,701.03,0.28529449]
[1735677961098,0.26210691,702.51,701.03,0.28529449]
[1735677961289,0.26210691,702.5,701.03,0.28529449]
[1735677961487,0.26210691,702.49,701.03,0.28529449]
[1735677961693,0.26210691,702.48,701.03,0.28529449]
[1735677961889,0.28464078,702.64,701.03,0.28529449]
[1735677961890,0.26210691,702.47,701.03,0.28529449]
[1735677962090,0.26210691,702.46,701.03,0.28529449]
[1735677962293,0.26210691,702.45,701.03,0.28529449]
[1735677962493,0.26210691,702.44,701.03,0.28529449]
[1735677963091,0.26212732,702.43,701.03,0.28529449]
[1735677963293,0.26212732,702.42,701.03,0.28529449]
[1735677963495,0.26212732,702.41,701.03,0.28529449]
[1735677963689,0.26212732,702.4,701.03,0.28529449]
[1735677963894,0.26212732,702.39,701.03,0.28529449]
[1735677964095,0.26212732,702.38,701.03,0.28529449]
[1735677964292,0.26212732,702.37,701.03,0.28529449]
[1735677964491,0.26212732,702.36,701.03,0.28529449]
[1735677964696,1.4876881,702.45,701.03,0.28529449]
[1735677964697,0.26212732,702.35,701.03,0.28529449]
[1735677964996,0.26212732,702.34,701.03,0.28529449]
[1735677965189,0.26212732,702.33,701.03,0.28529449]
[1735677965393,0.26212732,702.32,701.03,0.28529449]
[1735677965591,0.26212732,702.44,701.03,0.28529449]
[1735677965896,0.26212732,702.43,701.03,0.28529449]
[1735677966198,0.26212732,702.42,701.03,0.28529449]
[1735677966395,0.26212732,702.41,701.03,0.28529449]
[1735677966590,0.26212732,702.4,701.03,0.28529449]
[1735677966794,0.26212732,702.39,701.03,0.28529449]
[1735677966994,0.26212732,702.38,701.03,0.28529449]
[1735677967196,0.26212732,702.37,701.03,0.28529449]
[1735677967495,1.4876881,702.45,701.03,0.28529449]
[1735677967496,0.26212732,702.36,701.03,0.28529449]
[1735677967696,1.4876881,702.45,701.03,0.28529449]
[1735677967697,0.26212732,702.35,701.03,0.28529449]
[1735677967995,0.26212732,702.34,701.03,0.28529449]
[1735677968197,1.4876881,702.45,701.03,0.28529449]
[1735677968198,0.26212732,702.33,701.03,0.28529449]
[1735677968399,0.26217772,702.32,701.03,0.28529449]
[1735677968599,0.26217772,702.31,701.03,0.28529449]
[1735677968792,0.26217772,702.3,701.03,0.28529449]
[1735677968991,0.26217772,702.29,701.03,0.28529449]
[1735677969196,0.26217772,702.28,701.03,0.28529449]
[1735677969396,0.26217772,702.27,701.03,0.28529449]
[1735677969597,0.26217772,702.26,701.03,0.28529449]
[1735677969901,0.26217772,702.25,701.03,0.28529449]
[1735677970201,1.4876881,702.45,701.03,0.28529449]
[1735677970398,0.26216616,702.44,701.03,0.28529449]
[1735677971001,0.26217878,702.43,701.03,0.28529449]
[1735677971200,0.26217878,702.42,701.03,0.28529449]
[1735677971397,0.26217878,702.41,701.03,0.28529449]
[1735677971601,0.26217878,702.4,701.03,0.28529449]
[1735677971903,0.26217878,702.39,701.03,0.28529449]
[1735677972104,0.26217878,702.38,701.03,0.28529449]
[1735677972301,0.26217878,702.37,701.03,0.28529449]
[1735677972603,0.28464078,702.64,701.03,0.28529449]
[1735677972604,0.26217878,702.36,701.03,0.28529449]
[1735677972904,0.26218693,702.35,701.03,0.28529449]
[1735677973203,1.48793723,702.36,701.03,0.28529449]
[1735677973596,0.26218747,702.35,701.03,0.28529449]
[1735677973797,1.48793723,702.36,701.03,0.28529449]
[1735677973998,0.26218663,702.35,701.03,0.28529449]
[1735677974198,1.48793723,702.36,701.03,0.28529449]
[1735677974804,0.26218425,702.35,701.03,0.28529449]
[1735677975199,1.48793723,702.36,701.03,0.28529449]
[1735677975403,0.26218373,702.35,701.03,0.28529449]
[1735677976107,1.48793723,702.36,701.03,0.28529449]
[1735677976600,0.26216142,702.35,701.03,0.28529449]
[1735677978202,1.05922886,702.33,701.03,0.28529449]
[1735677978408,0.26216142,702.32,701.03,0.28529449]
[1735677978807,0.26218281,702.31,701.03,0.28529449]
[1735677979007,0.26218281,702.3,701.03,0.28529449]
[1735677979200,0.26218281,702.29,701.03,0.28529449]
[1735677979403,0.26218281,702.28,701.03,0.28529449]
[1735677979600,0.26218281,702.27,701.03,0.28529449]
[1735677979802,0.26218281,702.26,701.03,0.28529449]
[1735677980005,0.26218281,702.25,701.03,0.28529449]
[1735677980208,0.26218281,702.24,701.03,0.28529449]
[1735677980502,1.05922886,702.28,701.03,0.28529449]
[1735677980700,0.26217715,702.27,701.03,0.28529449]
[1735677980905,1.05922886,702.28,701.03,0.28529449]
[1735677981308,1.05922886,702.31,701.03,0.28529449]
[1735677981511,0.26217287,702.3,701.03,0.28529449]
[1735677982211,0.2621598,702.29,701.03,0.28529449]
[1735677982512,0.2621598,702.28,701.03,0.28529449]
[1735677982707,0.2621598,702.27,701.03,0.28529449]
[1735677983009,0.2621598,702.26,701.03,0.28529449]
[1735677983312,0.2621598,702.25,701.03,0.28529449]
[1735677983505,1.05922886,702.28,701.14,1.06176349]
[1735677983705,0.26214221,702.27,701.14,1.06176349]
[1735677983907,0.26214221,702.27,701.15,0.28524566]
[1735677984213,0.26214328,702.26,701.15,0.28524566]
[1735677984409,0.26214328,702.25,701.15,1.34700915]
[1735677984610,1.05922886,702.28,701.15,1.34700915]
[1735677984810,0.26214145,702.27,701.15,1.34700915]
[1735677985011,1.05922886,702.28,701.15,1.34700915]
[1735677985812,1.05922886,702.31,701.17,1.06176349]
[1735677986012,0.26213067,702.3,701.18,0.28523346]
[1735677986207,1.05922886,702.31,701.18,0.28523346]
[1735677986610,0.26213592,702.3,701.18,0.28523346]
[1735677986811,0.26213592,702.3,701.18,1.34699695]
[1735677987010,0.26213592,702.29,701.18,1.34699695]
[1735677987212,0.26213592,702.28,701.18,1.34699695]
[1735677987408,0.26213592,702.35,701.18,1.34699695]
[1735677987609,0.26213592,702.34,701.18,1.34699695]
[1735677987809,0.26213592,702.33,701.18,1.34699695]
[1735677988011,1.05922886,702.3,701.18,0.28523346]
[1735677988807,1.04901629,702.3,701.18,0.28523346]
[1735677989114,1.48793723,702.36,701.18,0.28523346]
[1735677989310,0.26213369,702.35,701.18,0.28523346]
[1735677990012,0.26213369,702.35,701.18,1.34699695]
[1735677990907,0.26213369,702.35,701.18,0.28523346]
[1735677991713,0.26213369,702.35,701.21,1.06176349]
[1735677991908,0.26213369,702.35,701.21,1.34698475]
[1735677992112,0.26213598,702.34,701.21,1.34698475]
[1735677992309,0.26213598,702.33,701.21,1.34698475]
[1735677992515,0.26213598,702.32,701.21,0.28522126]
[1735677992715,0.26213598,702.31,701.21,0.28522126]
[1735677992916,1.48793723,702.36,701.21,0.28522126]
[1735677993115,0.26213735,702.35,701.21,0.28522126]
[1735677993915,1.48793723,702.36,701.21,0.28522126]
[1735677996621,0.28464078,702.64,701.21,0.28522126]
[1735677996922,1.48755032,702.51,701.21,0.28522126]
[1735677997219,0.26210884,702.5,701.21,0.28522126]
[1735677997415,0.26210884,702.49,701.21,0.28522126]
[1735677997615,1.48746024,702.51,701.21,0.28522126]
[1735677997823,0.26210077,702.5,701.21,0.28522126]
[1735677998721,1.48746024,702.51,701.21,0.28522126]
[1735677999922,0.26211465,702.5,701.21,0.28522126]
[1735678002522,1.48746024,702.51,701.21,0.28522126]
[1735678002716,0.2621307,702.5,701.21,0.28522126]
[1735678003222,1.48746024,702.51,701.21,0.28522126]
[1735678006426,0.26212144,702.5,701.21,0.28522126]
[1735678014427,0.28464078,702.64,701.21,0.28522126]
[1735678018635,0.28464078,702.64,701.31,1.06176349]
[1735678018827,1.48698885,702.81,701.31,1.06176349]
[1735678019029,0.26199836,702.8,701.31,1.06176349]
[1735678020136,0.26199836,702.8,701.33,0.28517245]
[1735678020537,1.48698885,702.81,701.33,0.28517245]
[1735678020736,0.26198137,702.8,701.33,0.28517245]
[1735678020939,0.26198923,702.79,701.33,0.28517245]
[1735678021239,1.48698885,702.81,701.33,0.28517245]
[1735678021439,0.26198505,702.8,701.33,0.28517245]
[1735678021739,0.26198486,702.79,701.33,0.28517245]
[1735678021939,0.26198486,702.78,701.33,0.28517245]
[1735678022140,0.26198486,702.77,701.33,0.28517245]
[1735678022334,0.26198486,702.76,701.33,0.28517245]
[1735678022534,0.26198486,702.75,701.33,0.28517245]
[1735678022733,0.26198486,702.74,701.33,0.28517245]
[1735678022938,1.48698885,702.81,701.33,0.28517245]
[1735678023140,0.26201107,702.8,701.33,0.28517245]